bitfinex/quotes_ETHUSD_20220111
["timestamp","ask_amount","ask_price","bid_price","bid_amount"]
[1641938172155,20.99485415,3232.0,3231.9,0.00738951]
[1641938176514,1.46785415,3232.0,3231.9,0.00738951]
[1641938177115,0.77386,3232.1,3231.9,0.00738951]
[1641938178114,1.5,3232.0,3231.9,0.00738951]
[1641938179113,3.27386,3232.1,3231.9,0.00738951]
[1641938179956,1.5,3232.0,3231.9,0.00738951]
[1641938180960,3.27386,3232.1,3231.9,0.00738951]
[1641938181959,1.5,3232.0,3231.9,0.00738951]
[1641938182869,1.5,3232.0,3231.9,5.05738951]
[1641938183065,2.5,3232.7,3231.9,5.05738951]
[1641938183512,1.5,3232.7,3232.0,0.00682108]
[1641938183919,0.77363,3232.6,3232.0,0.00682108]
[1641938184921,1.54726,3232.6,3232.0,0.00682108]
[1641938185123,0.77363,3232.6,3232.0,0.00682108]
[1641938185522,1.77363,3232.6,3232.0,0.00682108]
[1641938185928,0.77363,3232.6,3232.0,0.00682108]
[1641938186127,1.5,3232.3,3232.0,0.00682108]
[1641938186925,1.77363,3232.6,3232.0,0.00682108]
[1641938186926,0.77363,3232.6,3232.0,0.00682108]
[1641938187160,1.77363,3232.6,3232.0,0.00682108]
[1641938187359,0.77363,3232.6,3232.0,0.00682108]
[1641938187759,0.77363,3232.6,3232.4,0.58041062]
[1641938187960,0.77363,3232.6,3232.0,0.00682108]
[1641938187961,0.747,3232.6,3232.0,0.00682108]
[1641938188161,0.77376,3232.4,3232.0,0.00682108]
[1641938188361,1.947,3232.6,3231.9,0.00738951]
[1641938188564,1.5,3232.6,3231.9,0.00738951]
[1641938188960,1.5,3233.1,3231.9,0.00738951]
[1641938189166,1.5473303,3232.8,3231.9,0.00738951]
[1641938189360,19.62741,3232.7,3231.9,0.00738951]
[1641938189559,1.54741,3232.7,3231.9,0.00738951]
[1641938189960,0.77361,3232.8,3231.9,0.00738951]
[1641938190160,1.5472921,3232.8,3231.9,0.00738951]
[1641938190808,20.71288,3232.8,3231.9,0.50863366]
[1641938191011,1.5,3232.5,3231.9,0.50863366]
[1641938191211,2.57365,3232.5,3232.0,0.00682108]
[1641938191612,1.0,3232.4,3232.0,0.00682108]
[1641938192412,1.8,3232.5,3232.0,0.00682108]
[1641938192413,1.5,3232.5,3232.0,0.00682108]
[1641938193115,1.5,3232.7,3232.5,0.48155395]
[1641938193516,8.10624673,3232.7,3232.6,0.00341054]
[1641938193716,23.71253,3232.7,3232.6,0.00341054]
[1641938193914,23.71253,3232.7,3232.0,0.00682108]
[1641938193915,24.71253,3232.7,3232.0,0.00682108]
[1641938194114,2.5,3232.6,3231.9,0.00738951]
[1641938194321,0.447,3232.5,3231.9,0.00738951]
[1641938194566,0.77373,3232.2,3232.0,0.49020913]
[1641938194958,0.77373,3232.2,3232.1,0.00625266]
[1641938194959,2.27373,3232.2,3232.1,0.00625266]
[1641938195559,1.5,3232.2,3232.1,0.00625266]
[1641938195762,1.5,3232.2,3232.1,3.20625266]
[1641938195965,2.54739,3232.4,3232.1,3.20625266]
[1641938195966,1.0,3232.4,3232.1,3.20625266]
[1641938196164,1.5,3232.6,3232.1,3.20625266]
[1641938196366,1.5,3232.6,3232.2,0.00568424]
[1641938197164,1.22058,3232.9,3232.2,0.00568424]
[1641938197165,1.5,3232.7,3232.2,0.00568424]
[1641938197566,1.8,3232.7,3232.2,0.00568424]
[1641938197967,1.5,3232.3,3232.2,0.00568424]
[1641938198611,1.5,3232.3,3232.2,6.30568424]
[1641938199016,1.0,3232.9,3232.2,6.30568424]
[1641938199418,0.77354,3233.0,3232.3,0.00511581]
[1641938201423,0.77354,3233.0,3232.3,2.46362012]
[1641938201821,0.77354,3233.0,3232.4,0.00454739]
[1641938202066,2.5,3233.2,3232.4,0.00454739]
[1641938202067,0.77358,3232.8,3232.4,0.00454739]
[1641938202463,0.77358,3232.8,3232.0,0.49020913]
[1641938202464,0.77358,3232.8,3232.1,0.00625266]
[1641938203063,0.77356,3232.9,3232.1,0.00625266]
[1641938203064,1.5,3232.6,3232.1,0.00625266]
[1641938203267,1.5,3232.6,3232.1,2.32761083]
[1641938203464,1.5,3232.6,3232.1,0.00625266]
[1641938203665,1.5,3232.6,3232.2,0.00568424]
[1641938203864,1.5,3232.6,3232.1,0.00625266]
[1641938204169,0.77382,3232.4,3232.1,0.00625266]
[1641938204365,1.22082,3232.4,3232.1,0.00625266]
[1641938204567,0.77383,3232.3,3231.9,0.00738951]
[1641938204966,1.5,3232.2,3231.9,0.00738951]
[1641938205165,1.5,3232.2,3232.0,0.44136879]
[1641938205565,2.27373,3232.2,3232.1,0.00625266]
[1641938206008,1.77373,3232.2,3232.1,0.00625266]
[1641938206509,0.77373,3232.2,3232.1,0.00625266]
[1641938206710,1.54747,3232.2,3232.1,0.00625266]
[1641938208110,3.04747,3232.2,3232.1,0.00625266]
[1641938208509,4.04747,3232.2,3232.1,0.00625266]
[1641938209561,6.43467729,3232.2,3232.1,0.00625266]
[1641938210153,4.04747,3232.2,3232.1,0.00625266]
[1641938211360,4.34747,3232.2,3232.1,0.00625266]
[1641938211758,4.04747,3232.2,3232.1,0.00625266]
[1641938213160,2.54747,3232.2,3232.1,0.00625266]
[1641938214016,4.04747,3232.2,3232.1,0.00625266]
[1641938214313,3.04747,3232.2,3232.1,0.00625266]
[1641938214512,4.04747,3232.2,3232.1,0.00625266]
[1641938215119,2.54747,3232.2,3232.1,0.00625266]
[1641938215316,2.84747,3232.2,3232.1,0.00625266]
[1641938216117,4.34747,3232.2,3232.1,0.00625266]
[1641938216316,3.34747,3232.2,3232.1,0.00625266]
[1641938216617,4.34747,3232.2,3232.1,0.00625266]
[1641938217356,2.8,3232.2,3232.1,0.00625266]
[1641938217554,1.5,3232.2,3232.1,0.00625266]
[1641938217758,2.5,3232.2,3232.1,0.00625266]
[1641938217952,1.0,3232.2,3232.1,0.00625266]
[1641938218154,2.5,3232.7,3232.1,0.00625266]
[1641938218558,1.8,3232.7,3232.1,0.00625266]
[1641938218858,0.77363,3232.6,3232.1,0.00625266]
[1641938219058,1.77363,3232.6,3232.1,0.00625266]
[1641938219659,0.77364,3232.5,3232.1,0.00625266]
[1641938220065,1.07364,3232.5,3232.1,0.00625266]
[1641938220267,0.77368,3232.4,3232.1,0.00625266]
[1641938221313,2.27369,3232.4,3232.1,0.00625266]
[1641938221514,2.5,3232.4,3232.1,0.00625266]
[1641938221913,1.5,3232.4,3232.1,0.00625266]
[1641938222113,2.27364,3232.6,3232.1,0.00625266]
[1641938222515,0.77367,3232.5,3232.1,0.00625266]
[1641938222715,0.77369,3232.4,3232.1,0.00625266]
[1641938223115,1.77367,3232.5,3232.1,0.00625266]
[1641938223617,0.77372,3232.3,3232.1,0.00625266]
[1641938223818,1.54745,3232.3,3232.1,0.00625266]
[1641938224771,1.77365,3232.5,3232.1,0.00625266]
[1641938225161,2.07365,3232.5,3232.1,0.00625266]
[1641938225667,2.8473,3232.5,3232.1,0.00625266]
[1641938226965,0.7737,3232.3,3232.1,0.00625266]
[1641938227167,1.5474,3232.3,3232.1,0.00625266]
[1641938228167,0.7737,3232.3,3232.1,0.00625266]
[1641938229413,2.54732,3232.5,3232.1,0.00625266]
[1641938229912,1.0,3232.5,3232.1,0.00625266]
[1641938230113,0.447,3232.8,3232.1,0.00625266]
[1641938230917,0.7736,3232.7,3232.1,0.00625266]
[1641938232468,1.22061,3232.8,3232.1,0.00625266]
[1641938232469,0.447,3232.8,3232.1,0.00625266]
[1641938233274,1.54714,3232.9,3232.1,0.00625266]
[1641938233477,3.19089694,3233.2,3232.1,0.00625266]
[1641938233478,4.27873346,3233.2,3232.1,0.00625266]
[1641938233675,1.0,3233.1,3232.1,0.00625266]
[1641938234578,3.06911506,3233.3,3232.7,1.15260092]
[1641938234579,0.38205506,3233.3,3232.7,1.15260092]
[1641938234776,15.008,3233.4,3232.7,1.99070092]
[1641938234976,15.008,3233.4,3232.8,0.0022737]
[1641938235832,15.008,3233.4,3232.9,0.54282995]
[1641938236234,15.008,3233.4,3233.0,0.00113685]
[1641938238938,7.20604745,3233.4,3233.0,2.854513]
[1641938239139,7.20604745,3233.4,3233.1,0.04208658]
[1641938239569,7.20604745,3233.4,3233.1,0.01201536]
[1641938240564,7.20604745,3233.4,3233.1,0.55318536]
[1641938240874,7.20604745,3233.4,3233.2,0.77316]
[1641938241072,7.20604745,3233.4,3233.2,1.07316]
[1641938241268,7.20604745,3233.4,3233.3,8.60205722]
[1641938241570,7.20718429,3233.4,3233.3,8.60205722]
[1641938242772,7.20718429,3233.4,3233.3,10.14821722]
[1641938243171,4.78113684,3234.9,3233.4,6.45]
[1641938243420,4.78113684,3234.9,3233.8,0.7730613]
[1641938243614,1.54614,3235.0,3233.9,2.45569767]
[1641938243615,1.00795793,3234.8,3233.9,2.45569767]
[1641938243814,1.00795793,3234.8,3234.1,0.547348]
[1641938244014,1.54614,3235.0,3234.1,0.547348]
[1641938244015,0.00738951,3234.7,3234.1,0.547348]
[1641938244415,0.00682109,3234.6,3234.1,1.45265135]
[1641938244618,0.00682109,3234.6,3234.0,1.1486]
[1641938244813,0.7731,3234.9,3234.0,1.1486]
[1641938244814,0.00625266,3234.5,3234.0,1.1486]
[1641938245213,0.7731,3234.9,3234.0,1.1486]
[1641938245214,0.00568424,3234.4,3234.0,1.1486]
[1641938245619,0.00511581,3234.3,3234.0,1.1486]
[1641938245815,0.00511581,3234.3,3233.3,3.2034]
[1641938245816,0.77327,3234.2,3233.3,3.2034]
[1641938246024,0.00454739,3234.2,3233.3,3.2034]
[1641938246218,0.00397897,3234.1,3233.3,3.2034]
[1641938246619,0.00341054,3234.0,3233.3,3.2034]
[1641938247079,0.00284212,3233.9,3233.3,3.2034]
[1641938247276,0.00284212,3233.9,3233.2,3.883]
[1641938247478,0.77329,3234.1,3233.2,3.883]
[1641938247479,0.0022737,3233.8,3233.2,3.883]
[1641938247682,0.29291537,3233.5,3233.2,3.883]
[1641938247879,1.06637537,3233.5,3233.1,1.212]
[1641938248181,1.06637537,3233.5,3233.2,0.00113685]
[1641938248583,1.35687402,3233.4,3233.2,0.00113685]
[1641938248779,0.77347,3233.3,3232.9,0.00284211]
[1641938248979,0.77347,3233.3,3232.4,0.00568423]
[1641938250581,1.54695,3233.3,3232.4,0.00568423]
[1641938251017,2.54695,3233.3,3232.4,0.00568423]
[1641938251219,1.54695,3233.3,3232.4,0.00568423]
[1641938251616,2.54695,3233.3,3232.4,0.00568423]
[1641938254021,0.77348,3233.3,3232.4,2.4012881]
[1641938254220,0.77348,3233.3,3232.4,0.00568423]
[1641938254418,0.77348,3233.3,3232.5,0.00511581]
[1641938254666,0.77348,3233.3,3232.4,0.00568423]
[1641938255873,1.54695,3233.3,3232.4,0.00568423]
[1641938257471,0.77348,3233.3,3232.4,0.00568423]
[1641938258171,0.77348,3233.3,3232.4,0.58793635]
[1641938258615,0.77348,3233.3,3232.5,0.00511581]
[1641938259411,3.61320537,3233.5,3232.5,0.00511581]
[1641938260012,2.83976537,3233.5,3232.5,0.00511581]
[1641938260412,1.83976537,3233.5,3232.5,0.00511581]
[1641938262963,1.5,3233.3,3232.5,0.00511581]
[1641938264169,2.27346,3233.3,3232.5,0.00511581]
[1641938264476,1.5,3233.3,3232.5,0.00511581]
[1641938264668,1.5,3233.3,3232.5,2.39511624]
[1641938265068,0.29291537,3233.5,3232.6,0.00454738]
[1641938265669,1.06632537,3233.5,3232.6,0.00454738]
[1641938266124,2.56632537,3233.5,3232.6,0.00454738]
[1641938267128,1.06632537,3233.5,3232.6,0.00454738]
[1641938268925,1.06632537,3233.5,3232.0,11.1122]
[1641938268926,0.88246548,3232.6,3232.0,11.1122]
[1641938269127,0.88246548,3232.6,3232.0,4.8251]
[1641938269323,1.65610548,3232.6,3232.1,0.00284212]
[1641938269567,0.88246548,3232.6,3232.1,0.00284212]
[1641938269774,1.88246548,3232.6,3232.1,0.00284212]
[1641938269969,1.3072621,3232.5,3231.9,0.00397897]
[1641938270170,0.77373,3232.3,3231.9,0.00397897]
[1641938270572,0.77374,3232.2,3231.9,0.00397897]
[1641938270973,2.27374,3232.2,3231.9,0.00397897]
[1641938271171,3.27374,3232.2,3231.9,0.00397897]
[1641938271969,4.04747,3232.2,3231.9,0.00397897]
[1641938272374,0.3,3232.1,3231.9,0.00397897]
[1641938272570,0.8433,3232.1,3231.9,0.00397897]
[1641938272774,5.947,3232.0,3231.9,0.00397897]
[1641938272974,7.43472,3232.0,3231.9,0.00397897]
[1641938273172,28.04472,3232.0,3231.9,0.00397897]
[1641938273416,10.44855634,3232.0,3231.9,0.00397897]
[1641938273813,9.93472,3232.0,3231.8,5.197e-05]
[1641938274014,6.8306968,3231.9,3231.8,5.197e-05]
[1641938274214,7.2776968,3231.9,3231.8,5.197e-05]
[1641938274414,25.6876968,3231.9,3231.8,5.197e-05]
[1641938275616,7.5776968,3231.9,3231.8,5.197e-05]
[1641938276219,9.0776968,3231.9,3231.8,5.197e-05]
[1641938276418,27.1876968,3231.9,3231.8,5.197e-05]
[1641938278967,24.607,3231.9,3231.8,5.197e-05]
[1641938279968,24.88652831,3231.9,3231.8,5.197e-05]
[1641938280171,23.38652831,3231.9,3231.8,5.197e-05]
[1641938280367,5.27652831,3231.9,3231.8,5.197e-05]
[1641938280567,1.72652831,3231.9,3231.8,5.197e-05]
[1641938281718,3.82652831,3231.9,3231.8,5.197e-05]
[1641938282919,1.72652831,3231.9,3231.8,5.197e-05]
[1641938283119,0.72652831,3231.9,3231.8,5.197e-05]
[1641938283322,1.72652831,3231.9,3231.8,5.197e-05]
[1641938283520,0.72652831,3231.9,3231.8,5.197e-05]
[1641938283718,1.72652831,3231.9,3231.8,5.197e-05]
[1641938284119,0.72652831,3231.9,3231.8,5.197e-05]
[1641938284319,1.72652831,3231.9,3231.8,5.197e-05]
[1641938285167,1.447,3231.9,3231.8,5.197e-05]
[1641938285374,1.5,3232.2,3231.9,0.00627411]
[1641938285568,1.5,3232.2,3231.8,5.197e-05]
[1641938285770,0.00113685,3232.1,3231.8,5.197e-05]
[1641938289716,0.32744777,3231.9,3231.8,5.197e-05]
[1641938290115,1.82744777,3231.9,3231.8,5.197e-05]
[1641938292171,0.32744777,3231.9,3231.8,5.197e-05]
[1641938292772,0.27744777,3231.9,3231.8,5.197e-05]
[1641938295173,2.5,3232.0,3231.8,5.197e-05]
[1641938295374,1.5,3232.0,3231.8,5.197e-05]
[1641938295575,2.5,3232.0,3231.8,5.197e-05]
[1641938295831,1.5,3232.0,3231.8,5.197e-05]
[1641938296019,1.0,3232.0,3231.8,5.197e-05]
[1641938296221,0.00113685,3232.1,3231.8,5.197e-05]
[1641938296419,0.77484685,3232.1,3231.8,5.197e-05]
[1641938297224,0.00113685,3232.1,3231.8,0.60805881]
[1641938299022,0.00113685,3232.1,3231.8,5.197e-05]
[1641938299871,2.32255685,3232.1,3231.8,5.197e-05]
[1641938300073,2.62255685,3232.1,3231.8,5.197e-05]
[1641938300572,1.0,3232.0,3231.8,5.197e-05]
[1641938301574,2.54776,3232.0,3231.8,5.197e-05]
[1641938302578,0.28833572,3231.9,3231.8,5.197e-05]
[1641938302778,1.06213572,3231.9,3231.8,5.197e-05]
[1641938307970,1.06213572,3231.9,3231.2,1.10430601]
[1641938308269,0.77382,3231.7,3231.3,0.00341054]
[1641938311525,0.77382,3231.7,3231.3,2.64066873]
[1641938311924,1.06211572,3231.9,3231.4,0.00284212]
[1641938312324,0.28833572,3231.9,3231.4,0.00284212]
[1641938320824,7.206,3232.3,3231.9,0.00779199]
[1641938321024,7.206,3232.3,3231.9,0.00864878]
[1641938321222,0.00170527,3232.2,3231.8,0.62016341]
[1641938321627,0.00113685,3232.1,3231.8,0.62016341]
[1641938322368,0.00113685,3232.1,3231.9,3.55133539]
[1641938323066,0.00113685,3232.1,3231.9,5.88102285]
[1641938323266,0.00113685,3232.1,3231.9,3.55133539]
[1641938324067,0.00113685,3232.1,3232.0,2.63725819]
[1641938327322,0.00113685,3232.1,3231.7,2.63725819]
[1641938328224,0.00113685,3232.1,3231.6,3.71823262]
[1641938328621,0.00113685,3232.1,3231.7,0.00113685]
[1641938329026,0.00113685,3232.1,3231.7,2.63839504]
[1641938331775,0.00113685,3232.1,3231.7,4.9983789]
[1641938332183,0.00113685,3232.1,3231.7,2.63839504]
[1641938332575,0.00113685,3232.1,3231.8,2.63725819]
[1641938333422,0.00113685,3232.1,3231.7,4.99154203]
[1641938333622,0.00113685,3232.1,3232.0,0.56255433]
[1641938336528,0.00113685,3232.1,3231.7,0.00113685]
[1641938337477,0.00113685,3232.1,3231.7,2.63809375]
[1641938340825,0.37479533,3232.0,3231.7,2.63809375]
[1641938341625,0.37479533,3232.0,3231.7,0.00113685]
[1641938341626,1.14854533,3232.0,3231.7,0.00113685]
[1641938342027,1.14854533,3232.0,3231.6,0.00170527]
[1641938343627,1.14854533,3232.0,3231.6,2.63866217]
[1641938344029,1.14854533,3232.0,3231.7,0.00113685]
[1641938349728,1.14075457,3232.0,3231.7,0.00113685]
[1641938350129,1.14075457,3232.0,3231.6,0.00170527]
[1641938351134,1.14075457,3232.0,3231.6,2.63866217]
[1641938351634,1.14075457,3232.0,3231.7,0.00113685]
[1641938353978,2.64075457,3232.0,3231.7,0.00113685]
[1641938354177,1.0,3231.9,3231.7,0.00113685]
[1641938356133,0.7738,3231.8,3231.7,0.00113685]
[1641938357128,2.2738,3231.8,3231.7,0.00113685]
[1641938358431,1.5,3231.8,3231.7,0.00113685]
[1641938359031,2.58541794,3232.0,3231.7,0.00113685]
[1641938359570,2.58541794,3232.0,3231.6,0.00170527]
[1641938359772,2.14076457,3232.0,3231.7,2.6369569]
[1641938360574,1.14076457,3232.0,3231.6,0.00170527]
[1641938362380,2.14076457,3232.0,3231.6,0.00170527]
[1641938363181,2.14076457,3232.0,3231.5,2.58866217]
[1641938363431,0.00170527,3231.9,3231.5,2.58866217]
[1641938363823,0.00113685,3231.8,3231.4,1.1371]
[1641938368578,0.77493685,3231.8,3231.4,1.1371]
[1641938368775,0.77493685,3231.8,3231.2,1.11938591]
[1641938369175,0.77493685,3231.8,3231.3,0.00170527]
[1641938370935,0.00113685,3231.8,3231.3,0.00170527]
[1641938372035,0.00113685,3231.8,3231.2,1.07109118]
[1641938372036,0.48652401,3231.8,3231.2,1.07109118]
[1641938372238,1.26032401,3231.8,3231.1,0.0016482]
[1641938372536,0.00227369,3231.7,3231.1,0.0016482]
[1641938372735,0.00227369,3231.7,3231.1,2.35215366]
[1641938372935,0.00170527,3231.6,3231.1,2.35215366]
[1641938373337,0.00113685,3231.5,3231.4,0.84949671]
[1641938373741,0.00113685,3231.5,3231.4,4.05106224]
[1641938375576,0.00113685,3231.5,3231.4,6.48461886]
[1641938375774,0.00113685,3231.5,3231.4,4.05106224]
[1641938378079,0.00113685,3231.5,3231.4,6.4962985]
[1641938378331,0.00113685,3231.5,3231.4,4.05106224]
[1641938379225,0.00113685,3231.5,3231.4,6.49494272]
[1641938379523,0.00113685,3231.5,3231.4,4.05106224]
[1641938382370,0.00113685,3231.5,3231.4,6.53100462]
[1641938383171,0.00113685,3231.5,3231.4,9.16798785]
[1641938390174,0.00113685,3231.5,3231.4,6.68804547]
[1641938390374,0.00113685,3231.5,3231.4,9.05305509]
[1641938390573,0.00113685,3231.5,3231.4,9.06053329]
[1641938390776,0.00113685,3231.5,3231.4,9.10209833]
[1641938391379,0.00113685,3231.5,3231.4,9.09623502]
[1641938392682,0.99316554,3232.2,3231.9,0.92412409]
[1641938393082,0.00341054,3232.1,3231.9,0.92412409]
[1641938393525,0.00284212,3232.0,3231.9,0.92412409]
[1641938394730,0.00284212,3232.0,3231.9,3.5610197]
[1641938399182,0.00284212,3232.0,3231.9,2.63689561]
[1641938400185,0.00284212,3232.0,3231.6,2.63689561]
[1641938400390,0.00284212,3232.0,3231.7,1.12269931]
[1641938402053,0.00284212,3232.0,3231.8,2.63689561]
[1641938405287,0.00284212,3232.0,3231.8,5.04572173]
[1641938405487,1.29316554,3232.2,3231.8,5.04572173]
[1641938405687,0.99316554,3232.2,3231.8,4.96327667]
[1641938405891,0.99316554,3232.2,3231.8,2.63689561]
[1641938406087,0.00341054,3232.1,3231.8,4.96952671]
[1641938406486,0.00284212,3232.0,3231.8,2.63689561]
[1641938406787,0.00227369,3231.9,3231.8,2.37996441]
[1641938406986,0.00227369,3231.9,3231.7,1.42269931]
[1641938407191,0.00227369,3231.9,3231.8,2.55]
[1641938407395,0.99316554,3232.2,3231.8,2.55]
[1641938407691,0.00341054,3232.1,3231.8,2.55]
[1641938408089,0.00284212,3232.0,3231.8,2.55]
[1641938408335,0.00284212,3232.0,3231.8,4.89575023]
[1641938408535,0.00227369,3231.9,3231.8,2.55]
[1641938409235,0.00227369,3231.9,3231.8,4.94626928]
[1641938409439,1.43732977,3231.9,3231.8,4.94626928]
[1641938410040,1.43732977,3231.9,3231.8,2.55]
[1641938411037,1.43732977,3231.9,3231.8,4.95695938]
[1641938411638,1.43732977,3231.9,3231.8,2.55]
[1641938412084,1.43732977,3231.9,3231.8,4.91999289]
[1641938412380,1.43732977,3231.9,3231.8,4.95475727]
[1641938413987,7.206,3232.3,3231.9,6.45]
[1641938414187,7.206,3232.3,3232.0,2.46954598]
[1641938414385,6.26680527,3232.3,3232.1,6.897]
[1641938414584,0.88246548,3232.6,3232.2,6.45]
[1641938414786,5.9558,3234.1,3232.4,6.45]
[1641938414988,5.9558,3234.1,3233.9,0.9556336]
[1641938414989,4.4558,3234.1,3233.9,0.9556336]
[1641938415195,1.1447,3234.1,3233.9,0.9556336]
[1641938415487,0.074,3234.0,3233.9,0.9556336]
[1641938418940,0.35797005,3234.6,3234.5,0.86453488]
[1641938420907,0.35797005,3234.6,3233.9,0.00113685]
[1641938421308,0.00227369,3234.5,3233.7,0.0022737]
[1641938421510,0.77324,3234.3,3233.3,2.36545581]
[1641938421906,0.77324,3234.3,3233.4,0.00397897]
[1641938422107,0.00170527,3234.4,3233.7,0.52423053]
[1641938422306,0.00170527,3234.4,3233.8,1.04991253]
[1641938422506,1.54642,3234.7,3233.8,1.3516178]
[1641938422507,0.00113684,3234.3,3233.8,1.3516178]
[1641938422912,0.00284212,3234.6,3233.8,1.3516178]
[1641938423931,0.7732,3234.5,3233.8,1.3516178]
[1641938424131,0.7732,3234.5,3233.9,2.38567989]
[1641938424334,0.00170527,3234.4,3233.8,1.3516178]
[1641938424736,0.00113684,3234.3,3233.8,3.75793507]
[1641938425135,0.00170527,3234.4,3233.8,3.72618293]
[1641938425335,0.00170527,3234.4,3233.8,1.3516178]
[1641938425540,0.7732,3234.5,3233.8,1.3516178]
[1641938425541,0.00113684,3234.3,3233.8,1.3516178]
[1641938425735,0.00113684,3234.3,3233.8,3.77884232]
[1641938425940,0.00170527,3234.4,3233.8,3.73617212]
[1641938426136,0.00170527,3234.4,3233.8,1.3516178]
[1641938426339,0.00113684,3234.3,3233.8,3.76526692]
[1641938426746,0.00284212,3234.6,3233.8,4.06526692]
[1641938427088,0.00795793,3235.5,3233.9,8.089]
[1641938427290,0.00795793,3235.5,3234.0,2.79496578]
[1641938427488,0.0073895,3235.4,3234.0,3.09496578]
[1641938427686,0.0073895,3235.4,3234.7,0.5138167]
[1641938427887,0.00682108,3235.3,3234.7,0.5138167]
[1641938428289,0.00625266,3235.2,3234.7,0.5138167]
[1641938428689,0.2952713,3235.5,3234.7,0.5138167]
[1641938428690,0.00568423,3235.1,3234.7,0.5138167]
[1641938429097,0.00511581,3235.0,3234.7,0.5138167]
[1641938429497,0.00454739,3234.9,3234.7,0.5138167]
[1641938429896,0.00397896,3234.8,3234.7,0.5138167]
[1641938430097,0.00397896,3234.8,3234.7,4.3138167]
[1641938430298,0.00397896,3234.8,3234.7,5.45622033]
[1641938431741,0.00397896,3234.8,3234.7,5.75622033]
[1641938432742,0.00397896,3234.8,3234.7,5.45622033]
[1641938435586,0.00397896,3234.8,3234.7,7.31094033]
[1641938436187,0.00397896,3234.8,3234.7,7.61094033]
[1641938438935,0.00397896,3234.8,3234.7,7.31094033]
[1641938439135,0.00397896,3234.8,3234.7,6.53812033]
[1641938440635,0.00397896,3234.8,3234.7,5.45622033]
[1641938444298,0.00397896,3234.8,3234.7,7.99798301]
[1641938444600,0.00397896,3234.8,3234.7,12.51238301]
[1641938444799,0.00397896,3234.8,3234.7,12.81238301]
[1641938445200,0.00397896,3234.8,3234.7,10.27062033]
[1641938448240,2.46907322,3236.4,3234.8,6.45]
[1641938448441,6.11,3237.1,3234.8,6.45]
[1641938448442,0.447,3237.4,3235.6,0.01247535]
[1641938448642,1.5,3237.6,3235.6,0.01247535]
[1641938448643,0.00738951,3236.1,3235.7,0.77257]
[1641938448844,0.00738951,3236.1,3235.8,3.3317]
[1641938449039,0.00682108,3236.0,3235.8,8.664]
[1641938449336,13.3473,3237.8,3235.8,8.664]
[1641938449337,13.39745224,3237.8,3235.9,8.16038783]
[1641938449594,12.9003,3237.8,3235.9,8.16038783]
[1641938449796,13.42836716,3237.8,3236.0,6.45]
[1641938449995,0.77247,3237.5,3236.1,0.3]
[1641938450195,0.77247,3237.5,3236.2,1.1269]
[1641938450397,0.77247,3237.5,3236.6,0.96763378]
[1641938450598,0.77247,3237.5,3236.3,0.00795793]
[1641938450802,0.77247,3237.5,3236.2,1.66764]
[1641938450803,0.77247,3237.5,3236.7,0.00568423]
[1641938451002,0.77247,3237.5,3236.2,1.1269]
[1641938451003,0.77247,3237.5,3236.3,0.00795793]
[1641938451601,0.77247,3237.5,3236.3,1.109589]
[1641938452003,1.54508,3237.5,3236.4,0.0073895]
[1641938452202,0.77261,3237.0,3236.4,0.0073895]
[1641938456341,0.77275,3236.7,3236.4,0.0073895]
[1641938456544,0.77275,3236.7,3236.3,0.00795793]
[1641938456740,0.77275,3236.7,3235.9,0.01023162]
[1641938456937,0.77275,3236.7,3235.8,0.01080004]
[1641938457883,0.7728,3236.2,3235.8,0.01080004]
[1641938462234,1.5134,3236.2,3235.8,0.01080004]
[1641938462437,1.9604,3236.2,3235.8,0.01080004]
[1641938462839,2.2604,3236.2,3235.8,0.01080004]
[1641938463036,2.9604,3236.2,3235.8,0.01080004]
[1641938468104,4.6,3236.0,3235.2,0.13518287]
[1641938468344,18.88294,3235.8,3235.2,0.13518287]
[1641938468532,18.88294,3235.8,3235.3,0.00284212]
[1641938468533,0.747,3235.7,3235.3,0.00284212]
[1641938468731,1.747,3235.7,3235.3,0.00284212]
[1641938469432,0.77318,3235.5,3235.3,0.00284212]
[1641938469636,3.597,3235.4,3235.3,0.00284212]
[1641938470031,4.597,3235.4,3235.3,0.00284212]
[1641938470434,7.16147251,3235.4,3235.3,0.00284212]
[1641938470634,4.597,3235.4,3235.3,0.00284212]
[1641938471039,4.897,3235.4,3235.3,0.00284212]
[1641938471637,4.597,3235.4,3235.3,0.00284212]
[1641938472287,4.897,3235.4,3235.3,0.00284212]
[1641938472681,7.39652959,3235.4,3235.3,0.00284212]
[1641938473481,7.09652959,3235.4,3235.3,0.00284212]
[1641938474085,6.097,3235.4,3235.3,0.00284212]
[1641938474485,8.64017063,3235.4,3235.3,0.00284212]
[1641938475491,8.64017063,3235.4,3235.2,0.00341054]
[1641938475690,4.77311,3235.3,3235.2,0.00341054]
[1641938475935,5.22011,3235.3,3235.2,0.00341054]
[1641938476236,7.70817984,3235.3,3235.2,0.00341054]
[1641938478639,25.81817984,3235.3,3235.2,0.00341054]
[1641938480384,2.8,3235.2,3235.1,0.77276212]
[1641938480586,7.00557728,3235.2,3235.1,0.77276212]
[1641938481391,4.847,3235.2,3235.1,0.77276212]
[1641938481789,6.1,3235.1,3235.0,0.05181241]
[1641938482089,29.93028,3235.1,3235.0,0.05294926]
[1641938482290,4.65,3235.0,3234.6,0.6443563]
[1641938482494,18.857,3234.9,3234.6,0.6443563]
[1641938482688,20.157,3234.9,3234.6,0.6443563]
[1641938482989,19.157,3234.9,3234.8,8.82252685]
[1641938483344,20.93032,3234.9,3234.8,8.82252685]
[1641938485538,24.43032,3234.9,3234.8,8.82252685]
[1641938487603,25.23779214,3234.9,3234.8,8.82252685]
[1641938491743,27.66018978,3234.9,3234.8,8.82252685]
[1641938494047,27.65648219,3234.9,3234.8,8.82252685]
[1641938494448,27.65648219,3234.9,3234.8,2.63588685]
[1641938494885,18.11,3234.7,3234.6,0.6443563]
[1641938495085,19.63038,3234.7,3234.6,0.6443563]
[1641938495285,21.42935993,3234.7,3234.6,0.64549314]
[1641938495492,9.8,3234.6,3234.5,0.56607732]
[1641938495687,34.45752151,3234.6,3234.5,0.56607732]
[1641938495897,34.75752151,3234.6,3234.5,0.56353158]
[1641938496094,36.25752151,3234.6,3234.5,0.56353158]
[1641938496895,18.14752151,3234.6,3234.5,0.56353158]
[1641938497798,1.07145993,3234.4,3234.1,0.40762931]
[1641938497999,0.77334,3234.3,3234.1,0.40762931]
[1641938498195,0.77334,3234.3,3234.2,0.0022737]
[1641938499039,0.77334,3234.2,3234.1,0.28722515]
[1641938499440,1.77334,3234.2,3234.1,0.28722515]